Cogmind - Beta 15 @@@ ROGUE MODE // 2025.06.12 @ 19:13:46 Player: KN-OKO Result: Destroyed by X-77 Beamer with Gatling Laser Performance ------------- Evolutions (5) 2500 Regions Visited (12) 2400 Robots Destroyed (173) 865 Value Destroyed (6213) 6213 Prototype IDs (30) 600 Alien Tech Used (0) 0 Bonus (982) 982 TOTAL SCORE: 13560 Bonus ------- Follower Combat Kills 512 Registered with UFD 300 Met Optimus in HQ 500 Met Data Miner 300 Friendly Fire -630 Cogmind --------- Core Integrity 0/1000 Matter 300/300 Energy 28/100 System Corruption 9% Temperature Cool (6) Movement Core (50) Location -5/Factory Parts ------- > --- POWER (2) -------- (None) > --- PROPULSION (6) --- (None) > --- UTILITY (7) ------ Advanced Melee Analysis Suite > --- WEAPON (2) ------- (None) > --- INVENTORY (5) ---- Light Fission Core Rainbow Chip Matter Neutralizer Improved Remote Datajack Companion Sword Peak State ------------ > --- POWER ------------ Micro Fission Core Antimatter Reactor > --- PROPULSION ------- Medium Treads Medium Treads Medium Treads Improved Medium Treads Improved Medium Treads Armored Medium Treads > --- UTILITY ---------- High-capacity Storage Unit Triangulator IFF Parser Advanced Melee Analysis Suite Phase Shifter Thermal Shield > --- WEAPON ----------- Long-range Missile Launcher Companion Sword > --- INVENTORY -------- Light Fission Core Improved Carbon-fiber Leg Flexi-carbon Leg Flexi-carbon Leg Flexi-carbon Leg Enhanced Flexi-carbon Leg Energy Well Matter Compressor Advanced Signal Interpreter Phase Shifter Rainbow Chip Compact Ion Cannon Compact Ion Cannon Matter Neutralizer Nova Cannon Magnetic Acceleration Cannon Micro-nuke Launcher Improved Remote Datajack CPS Tube [Rating: 89] Favorites ----------- Power Ion Engine Engine Ion Engine Power Core Neutrino Core Reactor Antimatter Reactor Propulsion Light Treads Treads Light Treads Leg Carbon-fiber Leg Wheel Armored Wheel Utility High-capacity Storage Unit Device Improved Hardlight Generator Storage High-capacity Storage Unit Processor Advanced Melee Analysis Suite Hackware Hacking Suite Protection Makeshift Light Armor Plating Weapon Companion Sword Energy Gun EM Pulse Gun Energy Cannon Subdweller Beam Cannon Ballistic Gun Light Assault Rifle Ballistic Cannon Battle Cannon Launcher Long-range Missile Launcher Slashing Weapon Companion Sword Build | -11 -10 -10 -8 -8 -6 -6 -6 -6 -6 -6 -5 -5 ------- Run | Yrd Mat Sub Rec Scr Fac Was Fac Low Low Dat Pro Fac Slots Evolved 10 | . . . . . 8 . . . . . . 2 Power 1 | . . . . . 1 . . . . . . . Propulsion 4 | . . . . . 3 . . . . . . 1 Utility 5 | . . . . . 4 . . . . . . 1 Weapon . | . . . . . . . . . . . . . Parts Attached 128 | 7 9 14 3 4 45 2 11 3 1 1 11 17 Power 23 | 1 2 . . 1 11 1 2 1 1 . 2 1 Engine 15 | 1 2 . . 1 9 . 1 . 1 . . . Core 5 | . . . . . 2 . 1 1 . . . 1 Reactor 3 | . . . . . . 1 . . . . 2 . Propulsion 50 | 2 . 5 2 . 18 1 4 . . 1 6 11 Treads 18 | 2 . . 1 . 5 . . . . 1 4 5 Leg 25 | . . 3 . . 11 1 4 . . . . 6 Wheel 7 | . . 2 1 . 2 . . . . . 2 . Hover . | . . . . . . . . . . . . . Flight . | . . . . . . . . . . . . . Utility 32 | 1 4 1 . . 13 . 3 2 . . 3 5 Device 10 | . 1 . . . 3 . . . . . 2 4 Storage 5 | 1 3 . . . . . . . . . . 1 Processor 6 | . . . . . 3 . 2 1 . . . . Hackware 5 | . . . . . 4 . 1 . . . . . Protection 6 | . . 1 . . 3 . . 1 . . 1 . Artifact . | . . . . . . . . . . . . . Weapon 23 | 3 3 8 1 3 3 . 2 . . . . . Energy Gun 1 | 1 . . . . . . . . . . . . Energy Cannon 10 | . . 5 1 1 1 . 2 . . . . . Ballistic Gun 2 | 2 . . . . . . . . . . . . Ballistic Cannon 6 | . 2 2 . 1 1 . . . . . . . Launcher 3 | . 1 1 . . 1 . . . . . . . Special Weapon . | . . . . . . . . . . . . . Impact Weapon . | . . . . . . . . . . . . . Slashing Weapon 1 | . . . . 1 . . . . . . . . Piercing Weapon . | . . . . . . . . . . . . . Special Melee Weapon . | . . . . . . . . . . . . . Unidentified Prototypes 2 | . . . . 1 1 . . . . . . . Parts Lost 69 | . 2 2 . . 23 1 2 . 3 . 12 24 Power 16 | . 1 . . . 8 . 1 . 2 . 1 3 Propulsion 33 | . . 2 . . 10 . . . 1 . 5 15 Utility 20 | . 1 . . . 5 1 1 . . . 6 6 Weapon . | . . . . . . . . . . . . . Highest Loss Streak 17 | . 1 1 . . 6 1 1 . 3 . 6 17 To Critical Strikes . | . . . . . . . . . . . . . Average Backups 16 | 5 9 17 19 16 16 16 15 18 18 18 15 16 Power . | . . 2 1 . . . . 1 . . . . Propulsion 3 | 3 4 4 4 4 1 3 2 3 4 4 3 4 Utility 4 | . . 1 3 4 5 4 5 6 7 7 5 4 Weapon 7 | . 3 9 10 6 6 7 6 5 6 6 5 6 Tool/Special . | . . . . . . . . . . . . . Unused Backups 37 | . 2 4 6 3 5 1 4 . . . . 12 Power 5 | . . 2 . 1 1 . . . . . . 1 Propulsion 6 | . 2 . 3 . . . 1 . . . . . Utility 11 | . . . 1 1 1 1 1 . . . . 6 Weapon 13 | . . 2 2 1 3 . 2 . . . . 3 Tool/Special 2 | . . . . . . . . . . . . 2 Average Slot Usage (%) 90 | . 98 98 98 91 90 93 93 87 81 80 69 76 Engine 8 | . 13 14 14 14 6 8 3 2 2 6 2 . Core 2 | . . . . . 5 . 4 10 8 . . 2 Reactor 1 | . . . . . . 3 4 . . . . 8 Treads 11 | . 28 3 13 14 16 . . . . 6 16 26 Leg 13 | . . 16 . . 13 32 33 33 30 26 9 1 Wheel 4 | . . 8 14 14 1 . . . . . 1 1 Device 3 | . 8 . . . . 6 6 1 . . 1 13 Storage 11 | . 18 22 14 14 6 6 6 6 6 6 6 5 Processor 5 | . . . . . 2 6 14 20 20 20 14 5 Hackware 3 | . . . . . 17 13 4 . . . . . Protection 7 | . . 4 14 14 10 3 6 6 6 6 7 2 Energy Cannon 5 | . . 20 26 . . . . . . . . . Ballistic Cannon 4 | . 18 6 . 18 . . . . . . . . Slashing Weapon 3 | . . . . 1 5 6 5 6 6 6 5 4 Peak Build Rating 89 | 6 8 17 18 26 66 73 79 77 74 64 70 89 Average Rating 42 | 5 7 12 17 19 55 67 70 73 70 64 59 75 On Entrance 40 | . 6 8 17 14 20 64 69 69 74 63 64 60 Naked Turns . | . . . . . . . . . . . . . Heaviest Build 93 | 11 53 65 65 67 75 89 86 87 87 68 93 86 Greatest Support 178 | 40 40 40 20 12 92 91 86 86 86 71 158 178 Greatest Overweight (x) 8 | . 1 3 5 5 5 1 . 1 1 . 8 2 Average Overweight (x) 1 | . . 2 4 4 . . . . . . . . Largest Inventory Capacity 20 | 8 20 20 20 20 20 20 20 20 20 20 20 20 Average Capacity 19 | 7 13 20 20 20 20 20 20 20 20 20 20 19 Most Carried 20 | 6 13 20 20 20 20 20 20 20 20 19 19 20 Average Carried 17 | 5 9 17 19 16 16 19 19 19 19 19 16 16 Final Capacity 20 | 8 20 20 20 20 20 20 20 20 20 20 20 5 Final Carried 20 | 6 13 20 20 18 17 20 18 20 20 19 14 5 Class Distribution -------------------- 35% | Scavenger-Mutant 32% | Mutant 20% | Commander-Mutant 11% | Hacker-Mutant Dominant Class ---------------- Mutant | -10/Materials Mutant | -10/Subcaves Commander-Mutant | -8/Recycling Commander-Mutant | -8/Scraptown Hacker-Mutant | -6/Factory Scavenger-Mutant | -6/Waste Scavenger-Mutant | -6/Factory Scavenger-Mutant | -6/Lower Caves Scavenger-Mutant | -6/Lower Caves Mutant | -6/Data Miner Mutant | -5/Proximity Caves Scavenger-Mutant | -5/Factory Resources | -11 -10 -10 -8 -8 -6 -6 -6 -6 -6 -6 -5 -5 ----------- Run | Yrd Mat Sub Rec Scr Fac Was Fac Low Low Dat Pro Fac Matter Collected 3803 | 330 544 277 219 410 587 475 215 155 37 . 314 240 Remotely . | . . . . . . . . . . . . . Salvage Created 8779 | 143 655 364 212 141 1701 1338 1658 215 197 . 547 1608 Parts 376 | 8 29 32 17 9 76 13 73 13 7 . 27 72 Haulers Intercepted 5 | . 2 . . . . . 1 . . . . 2 Recyclers Shooed 4 | . . . . . 1 . 1 . . . . 2 Parts Field Recycled . | . . . . . . . . . . . . . Retrieved Matter . | . . . . . . . . . . . . . Parts Self-Destructed 52 | . . 13 . . . . . 11 5 . 23 . Prevented . | . . . . . . . . . . . . . Kills | -11 -10 -10 -8 -8 -6 -6 -6 -6 -6 -6 -5 -5 ------- Run | Yrd Mat Sub Rec Scr Fac Was Fac Low Low Dat Pro Fac Combat Hostiles Destroyed 127 | . 13 11 4 4 27 6 15 11 4 . 16 16 Melee 53 | . . . . . 21 . 9 2 4 . 4 13 Guns 7 | . 7 . . . . . . . . . . . Cannons 18 | . 6 7 4 . . . 1 . . . . . AOE 49 | . . 4 . 4 6 6 5 9 . . 12 3 Classes Destroyed 26 | 2 4 3 1 4 3 2 3 . 1 . 2 1 Worker 8 | . . . . . 2 . 2 . . . . 4 Builder 4 | . . . . . . . 3 . . . . 1 Tunneler 5 | 4 . . . . . . 1 . . . . . Hauler 5 | . 2 . . . . . 1 . . . . 2 Recycler 13 | 1 2 . . . 2 . 5 . . . . 3 Mechanic 1 | . . . . . . . . . . . . 1 Operator 1 | . . . . . 1 . . . . . . . Turret 2 | . . 2 . . . . . . . . . . Watcher 4 | . 2 . . . 2 . . . . . . . Swarmer 25 | . 3 4 . . 6 . . 7 . . 5 . Grunt 49 | . 10 . . . 11 . 10 4 2 . 7 5 Brawler 3 | . . . . . . . 1 . . . 1 1 Duelist 1 | . . . . . . . . . . . 1 . Protector 1 | . . . . . . . . . . . 1 . Sentry 10 | . . 1 3 . 3 . 1 . 1 . 1 . Hunter 9 | . . . . . 4 . 1 . . . . 4 Programmer 12 | . . . 1 . 3 . 1 . . . . 7 Behemoth 1 | . . . . . . . 1 . . . . . Compactor 6 | . . . . . . 6 . . . . . . Subdweller 6 | . . 6 . . . . . . . . . . Federalist 2 | . . . . 2 . . . . . . . . Ranger 1 | . . . . 1 . . . . . . . . Guru 1 | . . . . 1 . . . . . . . . Scrapper 1 | . . . . 1 . . . . . . . . Thief 1 | . . . . . . . . . 1 . . . Martyr 1 | . . . . . . 1 . . . . . . Best Kill Streak 8 | 1 5 5 1 4 5 2 6 4 2 . 8 6 Combat Bots Only 8 | . 3 4 1 4 4 2 5 4 2 . 8 6 Max Kills in Single Turn 3 | 1 1 1 1 2 3 1 3 3 1 . 2 3 Gunslinging . | . . . . . . . . . . . . . Exploded 3 | . . 1 . 1 3 1 2 3 . . 2 3 Melee 1 | . . . . . 1 . 1 1 1 . 1 1 Uniques/NPCs Destroyed . | . . . . . . . . . . . . . Combat | -11 -10 -10 -8 -8 -6 -6 -6 -6 -6 -6 -5 -5 -------- Run | Yrd Mat Sub Rec Scr Fac Was Fac Low Low Dat Pro Fac Hostile Shots Fired 1141 | . 59 37 4 32 384 1 99 15 113 . 115 282 Missed 302 | . 15 11 1 12 96 . 35 3 30 . 35 64 Hits 839 | . 44 26 3 20 288 1 64 12 83 . 80 218 Melee 11 | . . . . . . 1 . . 1 . 8 1 Projectile 828 | . 44 26 3 20 288 . 64 12 82 . 72 217 Critical Strikes 23 | . . 1 . 2 3 1 8 . . . 1 7 Part Disruptions 4 | . . . . . 1 . . . . . . 3 Damage Taken 12514 | . 536 502 47 356 4008 101 723 175 643 . 1643 3780 Core 2014 | . 98 76 32 . 450 27 77 33 27 . 193 1001 Absorbed by Shields 432 | . . . . . 12 6 306 72 . . 36 . Ignored by Resistances 190 | . . . . . 98 . . . . . . 92 Regen/Repaired (Parts) 584 | . . . . . 376 183 25 . . . . . Core Remaining (%) 40 | 100 . . . 17 . . . . . . 5 . Volleys Fired 197 | 15 56 49 10 5 7 29 6 7 . . 11 2 Largest 2 | 2 2 2 2 1 1 1 1 1 . . 1 1 Hottest 160 | 40 60 160 160 40 44 43 90 43 . . 43 43 Shots Fired 301 | 30 111 79 14 5 7 29 6 7 . . 11 2 Gun 74 | 30 44 . . . . . . . . . . . Cannon 156 | . 66 72 14 . 2 . 2 . . . . . Launcher 71 | . 1 7 . 5 5 29 4 7 . . 11 2 Special . | . . . . . . . . . . . . . Kinetic 178 | 30 110 27 . 5 6 . . . . . . . Thermal 64 | . . 48 14 . . . 2 . . . . . Explosive 59 | . 1 4 . . 1 29 4 7 . . 11 2 Electromagnetic . | . . . . . . . . . . . . . Robot Hit Streak 18 | 5 10 18 7 2 4 15 9 1 . . 5 6 Robot Miss Streak 3 | 1 3 1 . 2 1 2 . 3 . . 1 . Penetration Max . | . . . . . . . . . . . . . Secondary Targets 4 | . 4 . . . . . . . . . . . Max Gunslinging Chain 1 | . 1 . . . . . . . . . . . Shots Hit Robots 390 | 20 66 29 6 3 88 25 45 4 21 . 22 61 Core Hits 235 | 7 25 16 4 5 46 14 32 14 3 . 33 36 Critical Kills . | . . . . . . . . . . . . . Critical Parts Destroyed . | . . . . . . . . . . . . . Critical Strikes 11 | . 1 . . . 2 . . . 2 . . 6 Blast 1 | . 1 . . . . . . . . . . . Melee Attacks 317 | . . . . 1 119 4 63 6 24 . 21 79 Impact . | . . . . . . . . . . . . . Slashing 317 | . . . . 1 119 4 63 6 24 . 21 79 Piercing . | . . . . . . . . . . . . . Sneak Attacks 35 | . . . . . 6 4 13 . 2 . . 10 Combat Hostiles 2 | . . . . . . . . . 2 . . . Follow-up Attacks 5 | . . . . . . . 4 . . . . 1 Damage Inflicted 24050 | 210 986 801 214 660 4418 4902 3084 1222 978 . 2158 4417 Guns 543 | 210 333 . . . . . . . . . . . Cannons 1330 | . 650 414 214 . . . 52 . . . . . Explosions 10971 | . . 387 . 621 695 4562 585 1123 . . 1626 1372 Melee 11203 | . . . . 39 3723 340 2447 99 978 . 532 3045 Ramming 3 | . 3 . . . . . . . . . . . Kinetic 2625 | 210 983 338 . 621 473 . . . . . . . Thermal 1541 | . . 273 214 . . . 52 . . . . 1002 Explosive 8678 | . . 190 . . 222 4562 585 1123 . . 1626 370 Electromagnetic . | . . . . . . . . . . . . . Impact . | . . . . . . . . . . . . . Slashing 11203 | . . . . 39 3723 340 2447 99 978 . 532 3045 Piercing . | . . . . . . . . . . . . . Highest Corruption 14 | . . . 2 . 5 . 1 1 1 1 14 9 Average Corruption 1 | . . . 1 . 1 . 1 1 1 1 5 5 Corruption Purged 5 | . . . . . 5 . . . . . . . Corruption Blocked . | . . . . . . . . . . . . . Effects 44 | . . . 14 . 5 . 4 3 7 1 7 3 Message Errors 8 | . . . 2 . 1 . 2 1 . . 2 . Matter Fused 16 | . . . 4 . . . 2 . 4 1 4 1 Heat Flow Errors 6 | . . . 2 . 1 . . 1 . . 1 1 Energy Discharges 3 | . . . . . 2 . . . 1 . . . Parts Rejected 1 | . . . 1 . . . . . . . . . Parts Fused 1 | . . . . . . . . 1 . . . . Data Loss (minor) 4 | . . . 2 . 1 . . . 1 . . . Data Loss (major) 2 | . . . 1 . . . . . 1 . . . Alerts 2 | . . . 1 . . . . . . . . 1 Weapon Failures 1 | . . . 1 . . . . . . . . . Overload Shots . | . . . . . . . . . . . . . Overflow Damage 1623 | . 7 31 . 53 175 82 427 18 79 . 95 656 Projectiles 7 | . 7 . . . . . . . . . . . Explosions 575 | . . 31 . 53 21 24 28 18 . . 95 305 Melee 1041 | . . . . . 154 58 399 . 79 . . 351 Knockbacks 14 | . 10 4 . . . . . . . . . . Impact . | . . . . . . . . . . . . . Kinetic 14 | . 10 4 . . . . . . . . . . Secondary . | . . . . . . . . . . . . . Self-Inflicted Damage 360 | . . 8 . 58 . 65 . 39 . . 12 178 Shots 8 | . . 1 . 1 . 2 . 1 . . 1 2 Rammed 1 | . 1 . . . . . . . . . . . Targets Rammed 1 | . 1 . . . . . . . . . . . Kicked . | . . . . . . . . . . . . . Crushed . | . . . . . . . . . . . . . Highest Temperature 289 | . 34 289 228 102 286 8 112 283 5 . 257 221 Average Temperature 59 | . 14 41 82 48 80 3 29 143 3 . 66 80 Received Heat Transfer 2809 | . 279 441 . 157 757 . 314 27 183 . 291 360 Siege Activations . | . . . . . . . . . . . . . Martial Activations . | . . . . . . . . . . . . . Shielding Activations . | . . . . . . . . . . . . . Robots Disrupted 3 | . . . . . . . 1 . 1 . 1 . Combat Hostiles 3 | . . . . . . . 1 . 1 . 1 . Robots Corrupted . | . . . . . . . . . . . . . Combat Hostiles . | . . . . . . . . . . . . . Parts Fried . | . . . . . . . . . . . . . Impact Corruptions . | . . . . . . . . . . . . . Robots Melted . | . . . . . . . . . . . . . Combat Hostiles . | . . . . . . . . . . . . . Parts Melted 2 | . . . . 1 1 . . . . . . . Heat Transferred 1178 | . . 370 259 . . . 74 . . . . 475 Parts Sabotaged . | . . . . . . . . . . . . . Parts Stolen . | . . . . . . . . . . . . . Parts Stripped . | . . . . . . . . . . . . . Power Chain Reactions . | . . . . . . . . . . . . . Alert | -11 -10 -10 -8 -8 -6 -6 -6 -6 -6 -6 -5 -5 ------- Run | Yrd Mat Sub Rec Scr Fac Was Fac Low Low Dat Pro Fac Maximum Alert Level 1 | . . . . . 1 . 1 . . . . 1 Low Security (%) 90 | 100 100 . 100 . 97 100 58 . . . . 99 Level 1 9 | . . . . . 2 . 41 . . . . . Level 2 . | . . . . . . . . . . . . . Level 3 . | . . . . . . . . . . . . . Level 4 . | . . . . . . . . . . . . . Level 5 . | . . . . . . . . . . . . . High Security . | . . . . . . . . . . . . . Max Security . | . . . . . . . . . . . . . Peak Influence 322 | 5 141 . 80 . 239 89 322 . . . . 223 Initial 82 | . . . 73 . . 82 . . . . . 77 Average 63 | 1 69 . 21 . 61 43 134 . . . . 32 Influence Increases 4086 | 25 365 170 254 . 826 129 855 250 60 . 536 616 Destroy 0b10 Robot/C 2480 | . 260 140 80 . 540 . 440 220 60 . 420 320 Destroy 0b10 Robot/NC 220 | 25 30 . . . 35 . 70 . . . 5 55 Destroy Leader 486 | . 68 . . . 154 . 112 30 . . 30 92 Allied During Kill 212 | . . . 18 . . . 143 . . . 51 . Successful Hack 72 | . . . . . 56 . 16 . . . . . Select Force Hacks 150 | . . . 150 . . . . . . . . . Disable Machine 30 | . . . . . . . . . . . . 30 Destroy Structure 301 | . 7 . 6 . 41 129 44 . . . . 74 Lose Combat Pursuer 135 | . . 30 . . . . 30 . . . 30 45 Influence Decreases 3907 | 25 330 51 408 . 590 365 541 419 205 . 412 561 Entered New Map 445 | . . 18 81 . . 154 . 117 28 . . 47 Time Decay 2742 | 25 310 33 327 . 420 201 421 302 157 . 232 314 Lost Part 550 | . 20 . . . 160 10 20 . 20 . 120 200 Lost Ally 170 | . . . . . 10 . 100 . . . 60 . Squads Dispatched 28 | . 3 . . . 11 . 7 . . . 1 6 Investigation 12 | . 1 . . . 5 . 4 . . . . 2 Extermination 9 | . . . . . 4 . 2 . . . . 3 Reinforcement 6 | . 2 . . . 2 . 1 . . . . 1 Assault 1 | . . . . . . . . . . . 1 . Garrison . | . . . . . . . . . . . . . Intercept . | . . . . . . . . . . . . . Searches Triggered . | . . . . . . . . . . . . . Data Miner Redirects 1 | . . . . . . . . . . . . 1 Construction Impeded . | . . . . . . . . . . . . . Haulers Reinforced 1 | . . . . . . . . . . . . 1 Active Scanning Responses . | . . . . . . . . . . . . . Cargo Convoy Interrupts 1 | . . . . . . . . . . . . 1 Stealth | -11 -10 -10 -8 -8 -6 -6 -6 -6 -6 -6 -5 -5 --------- Run | Yrd Mat Sub Rec Scr Fac Was Fac Low Low Dat Pro Fac Distress Signals 5 | . 2 . . . 1 . 1 . . . . 1 Communications Jammed . | . . . . . . . . . . . . . Distress Signals . | . . . . . . . . . . . . . Times Spotted 185 | . 20 12 1 5 34 6 30 7 4 . 29 37 Peak Tracking Total 12 | . 4 4 1 5 4 4 6 4 3 . 9 12 Tactical Retreats 8 | . . 1 . . . . 2 . . . 2 3 Traps | -11 -10 -10 -8 -8 -6 -6 -6 -6 -6 -6 -5 -5 ------- Run | Yrd Mat Sub Rec Scr Fac Was Fac Low Low Dat Pro Fac Traps Triggered 3 | . . . . . 2 . 1 . . . . . Indirectly . | . . . . . . . . . . . . . Trap Hack Attempts . | . . . . . . . . . . . . . Triggered . | . . . . . . . . . . . . . Disarmed . | . . . . . . . . . . . . . Reprogrammed . | . . . . . . . . . . . . . Reused . | . . . . . . . . . . . . . Traps Extracted . | . . . . . . . . . . . . . Installed . | . . . . . . . . . . . . . Triggered . | . . . . . . . . . . . . . Machines | -11 -10 -10 -8 -8 -6 -6 -6 -6 -6 -6 -5 -5 ---------- Run | Yrd Mat Sub Rec Scr Fac Was Fac Low Low Dat Pro Fac Machines Disabled 9 | . . 5 . 1 . . . . . . 1 2 Max in Single Turn 2 | . . 2 . 1 . . . . . . 1 2 Garrison Access 1 | . . . . . . . 1 . . . . . Machines Repaired . | . . . . . . . . . . . . . Machines Dismantled . | . . . . . . . . . . . . . Machines Sabotaged . | . . . . . . . . . . . . . Overloaded Fab Kills . | . . . . . . . . . . . . . Hacking | -11 -10 -10 -8 -8 -6 -6 -6 -6 -6 -6 -5 -5 --------- Run | Yrd Mat Sub Rec Scr Fac Was Fac Low Low Dat Pro Fac Machines Accessed 42 | . 1 1 8 1 11 . 12 . . 4 . 4 Terminals 13 | . 1 . 3 . 4 . 4 . . . . 1 Fabricators 3 | . . . . . 1 . 2 . . . . . Repair Stations 3 | . . . . . 2 . 1 . . . . . Recycling Units 16 | . . . 5 . 4 . 4 . . . . 3 Scanalyzers . | . . . . . . . . . . . . . Garrison Access 1 | . . . . . . . 1 . . . . . Total Hacks 116 | . 3 1 12 1 40 . 25 . . 26 . 8 Successful 70 | . . 1 7 1 26 . 6 . . 26 . 3 Failed 46 | . 3 . 5 . 14 . 19 . . . . 5 Catastrophic 10 | . 1 . 1 . 1 . 6 . . . . 1 Database Lockouts . | . . . . . . . . . . . . . Manual 49 | . 3 . 9 . 18 . 15 . . . . 4 Terminals 43 | . 3 . 6 . 25 . 8 . . . . 1 Fabricators 8 | . . . . . 2 . 6 . . . . . Repair Stations 9 | . . . . . 7 . 2 . . . . . Recycling Units 27 | . . . 6 . 6 . 8 . . . . 7 Scanalyzers . | . . . . . . . . . . . . . Garrison Access 1 | . . . . . . . 1 . . . . . Terminal Hacks 37 | . . 1 2 1 6 . 1 . . 26 . . Record 11 | . . . . . . . . . . 11 . . Part Schematic 8 | . . . . . . . . . . 8 . . Robot Schematic 4 | . . . . . . . . . . 4 . . Robot Analysis 1 | . . . . . 1 . . . . . . . Prototype ID Bank 6 | . . . 2 . 1 . . . . 3 . . Open Door 1 | . . . . 1 . . . . . . . . Alert Level 3 | . . . . . 2 . 1 . . . . . Locate Traps 1 | . . . . . 1 . . . . . . . Registered Prototypes 1 | . . . . . 1 . . . . . . . Proto ID Catalog 1 | . . 1 . . . . . . . . . . Fabricator Hacks 3 | . . . . . 1 . 2 . . . . . Network Status 2 | . . . . . 1 . 1 . . . . . Build 1 | . . . . . . . 1 . . . . . Repair Station Hacks 5 | . . . . . 5 . . . . . . . Scan Component 3 | . . . . . 3 . . . . . . . Repair 2 | . . . . . 2 . . . . . . . Recycling Unit Hacks 3 | . . . . . 2 . . . . . . 1 Report Inventory 2 | . . . . . 2 . . . . . . . Retrieve Components 1 | . . . . . . . . . . . . 1 Scanalyzer . | . . . . . . . . . . . . . Garrison Access Hacks 1 | . . . . . . . 1 . . . . . Seal Access 1 | . . . . . . . 1 . . . . . Unauthorized Hacks 21 | . . . 5 . 12 . 2 . . . . 2 Terminals 7 | . . . . . 7 . . . . . . . Assimilate 1 | . . . . . 1 . . . . . . . Botnet 3 | . . . . . 3 . . . . . . . Skim 3 | . . . . . 3 . . . . . . . Fabricators 1 | . . . . . 1 . . . . . . . Fabnet 1 | . . . . . 1 . . . . . . . Repair Stations . | . . . . . . . . . . . . . Recycling Units 13 | . . . 5 . 4 . 2 . . . . 2 Tunnel 5 | . . . 5 . . . . . . . . . Fedlink 8 | . . . . . 4 . 2 . . . . 2 Scanalyzers . | . . . . . . . . . . . . . Garrison Access . | . . . . . . . . . . . . . Data Cores Recovered . | . . . . . . . . . . . . . Used . | . . . . . . . . . . . . . Hacking Detections 22 | . 1 . 3 . 7 . 9 . . . . 2 Full Trace Events 3 | . 1 . 1 . 1 . . . . . . . Feedback Events 1 | . . . 1 . . . . . . . . . Corruption 1 | . . . 1 . . . . . . . . . Feedback Blocked . | . . . . . . . . . . . . . Robot Schematics Acquired 4 | . . . . . . . . . . 4 . . Robots Built 3 | . . . . . . . 3 . . . . . Authchips . | . . . . . . . . . . . . . Time 67 | . . . . . . . 67 . . . . . Total Robot Build Rating 12 | . . . . . . . 12 . . . . . Part Schematics Acquired 8 | . . . . . . . . . . 8 . . Parts Built . | . . . . . . . . . . . . . Authchips . | . . . . . . . . . . . . . Time . | . . . . . . . . . . . . . Total Part Build Rating . | . . . . . . . . . . . . . Parts Repaired 2 | . . . . . 2 . . . . . . . Time 30 | . . . . . 30 . . . . . . . Parts Recycled . | . . . . . . . . . . . . . Recycled Matter . | . . . . . . . . . . . . . Retrieved Matter . | . . . . . . . . . . . . . Retrieved Components 7 | . . . . . . . . . . . . 7 Parts Scanalyzed . | . . . . . . . . . . . . . Part Schematics Acquired . | . . . . . . . . . . . . . Parts Damaged . | . . . . . . . . . . . . . Bothacking | -11 -10 -10 -8 -8 -6 -6 -6 -6 -6 -6 -5 -5 ------------ Run | Yrd Mat Sub Rec Scr Fac Was Fac Low Low Dat Pro Fac Used RIF Installer . | . . . . . . . . . . . . . Robots Hacked 1 | . . . . . . . . . . . . 1 Non-combat . | . . . . . . . . . . . . . Combat 1 | . . . . . . . . . . . . 1 Robot Hacks Applied . | . . . . . . . . . . . . . Relay Couplers Released . | . . . . . . . . . . . . . Fabnet Peak Effective % 3 | . . . . . . . . . . . 3 3 Autooverrided 1 | . . . . . . . . . . . . 1 Robots Rewired 8 | . . . 5 . . . 1 . . . 2 . Allies Hacked 1 | . . . . . . . 1 . . . . . Hacks Repelled . | . . . . . . . . . . . . . Allies | -11 -10 -10 -8 -8 -6 -6 -6 -6 -6 -6 -5 -5 -------- Run | Yrd Mat Sub Rec Scr Fac Was Fac Low Low Dat Pro Fac Total Allies 33 | . . . 5 . 1 19 4 . . . 3 1 Largest Group 19 | . . . 5 5 1 19 12 . . . 1 . Highest-Rated Group 684 | . . . 72 72 26 684 389 . . . 96 . Highest-Rated Ally 96 | . . . 16 16 26 50 47 . . . 96 . Total Orders . | . . . . . . . . . . . . . Ally Attacks 196 | . . . . 16 5 . 133 . . . 42 . Total Damage 3142 | . . . . 309 14 . 2134 . . . 685 . Kills 19 | . . . . 3 . . 10 . . . 6 . Allies Corrupted . | . . . . . . . . . . . . . Allies Melted 1 | . . . . 1 . . . . . . . . Intel | -11 -10 -10 -8 -8 -6 -6 -6 -6 -6 -6 -5 -5 ------- Run | Yrd Mat Sub Rec Scr Fac Was Fac Low Low Dat Pro Fac Active Infowar (turns) 4498 | . 575 . . . 102 . 774 677 535 99 372 1364 Optics 1648 | . . . . . . . . 642 535 99 372 . IFF 326 | . . . . . . . . . . . . 326 Terrain 102 | . . . . . 102 . . . . . . . Seismic 575 | . 575 . . . . . . . . . . . Machine Analysis 809 | . . . . . . . 774 35 . . . . Triangulation 1364 | . . . . . . . . . . . . 1364 Robot Analysis Total 1 | . . . . . 1 . . . . . . . Derelict Logs Recovered 12 | . . 2 . 5 . . . 1 3 . 1 . Drone Launches . | . . . . . . . . . . . . . Drone Recoveries . | . . . . . . . . . . . . . Exploration | -11 -10 -10 -8 -8 -6 -6 -6 -6 -6 -6 -5 -5 ------------- Run | Yrd Mat Sub Rec Scr Fac Was Fac Low Low Dat Pro Fac Turns Passed 13628 | 192 894 2200 1196 1792 1890 513 1635 677 535 99 571 1434 Spaces Moved 7568 | 86 360 1159 626 1168 902 346 1118 381 298 81 314 729 Core 22 | 7 . . . . . . . . . . . 15 Treads 1957 | 79 360 85 . . 594 . . . . . 126 713 Legs 2755 | . . 223 . . 165 346 1118 381 298 81 142 1 Wheels 2834 | . . 851 626 1168 143 . . . . . 46 . Hover . | . . . . . . . . . . . . . Flight . | . . . . . . . . . . . . . Fastest Speed 50 | 50 160 140 140 150 110 122 122 122 122 122 110 50 Average Speed 151 | 151 186 171 162 150 148 123 122 165 157 122 140 158 Slowest Speed 330 | 160 240 330 165 165 240 192 122 192 192 122 260 260 Overloaded Moves . | . . . . . . . . . . . . . Propulsion Burnouts . | . . . . . . . . . . . . . Robots Hopped . | . . . . . . . . . . . . . Potential Cave-ins . | . . . . . . . . . . . . . Cave-ins Triggered . | . . . . . . . . . . . . . Exploration Rate (%) 58 | 6 64 75 99 83 27 96 25 67 64 75 57 19 Regions Visited 12 Branch Regions 7 Pre-discovered Areas 11 | . . 1 5 2 1 . . . 1 1 . . Known Exits Taken 1 | . . . . . . . . . . . 1 . Unknown Exits Taken 9 | 1 1 1 1 1 . . 1 1 1 1 . . Scrap Searched 11 | . . 4 . 4 . . . 1 1 . 1 . Spaces Dug 113 | . 5 6 6 20 18 11 37 2 . . 1 7 Terrain Destroyed 715 | . 5 58 7 68 62 253 40 83 . . 97 42 Melee 41 | . . . . . 16 . 15 2 . . 1 7 Projectile 16 | . . 7 7 . 2 . . . . . . . AOE 658 | . 5 51 . 68 44 253 25 81 . . 96 35 Terrain Rammed . | . . . . . . . . . . . . . Walls Destroyed . | . . . . . . . . . . . . . Machines Disabled . | . . . . . . . . . . . . . Actions | -11 -10 -10 -8 -8 -6 -6 -6 -6 -6 -6 -5 -5 --------- Run | Yrd Mat Sub Rec Scr Fac Was Fac Low Low Dat Pro Fac Total 8990 | 118 478 1289 794 1207 1271 395 1308 415 330 81 406 898 Wait 452 | 5 31 34 95 3 135 2 78 8 7 . 12 42 Move 7557 | 85 359 1158 625 1167 902 345 1117 380 297 80 313 729 Hop . | . . . . . . . . . . . . . Pick Up 100 | 5 12 13 6 9 24 6 9 1 1 . 2 12 Fast Attach 54 | 7 4 3 2 1 21 . 3 1 . . 4 8 Attach 75 | . 2 3 1 4 26 4 3 4 1 1 12 14 Detach 49 | 1 1 4 3 4 15 1 3 6 . . 6 5 Swap 44 | . 4 16 2 1 8 . 8 1 . . 2 2 Drop 77 | . 8 9 10 12 14 4 13 1 . . . 6 Fire 197 | 15 56 49 10 5 7 29 6 7 . . 11 2 Melee 311 | . . . . 1 119 4 58 6 24 . 21 78 Ram . | . . . . . . . . . . . . . Kick . | . . . . . . . . . . . . . Crush 1 | . 1 . . . . . . . . . . . Escape Stasis . | . . . . . . . . . . . . . Rewire 73 | . . . 40 . . . 10 . . . 23 . Trap . | . . . . . . . . . . . . . Miscellaneous . | . . . . . . . . . . . . . Route ------- -11/Scrapyard -10/Materials (discovered 3 exits: [*Mat x2] / *Sub) -10/Subcaves (discovered 2 exits: [*Mat] / *Rec) -8/Recycling (discovered 2 exits: *Fac / *Scr) -8/Scraptown -6/Factory (discovered 2 exits: Fac / [*Low]) -6/Waste -6/Factory -6/Lower Caves -6/Lower Caves -6/Data Miner -5/Proximity Caves -5/Factory (discovered 1 exit: Upp) History --------- Turn | Location | Event 10 | -11/Scrapyard | Discovered new exit (range 15) 193 | -11/Scrapyard | Entered Materials 313 | -10/Materials | Build established: Mutant 590 | -10/Materials | Discovered new exit (range 3) 815 | -10/Materials | Discovered new exit (range 5) 1049 | -10/Materials | Discovered new exit (range 8) 1087 | -10/Materials | Entered Subcaves 1099 | -10/Subcaves | Learned Materials emergency access door positions 1330 | -10/Subcaves | Core integrity fell below 50% 1395 | -10/Subcaves | Shifting Twisted Machinery released Battle Cannon 1472 | -10/Subcaves | Shifting Twisted Machinery released Battle Rifle 1484 | -10/Subcaves | Discovered new exit (range 8) 2109 | -10/Subcaves | Shifting Twisted Machinery released Sub. Beam Cannon 2332 | -10/Subcaves | A swath of the cavern ceiling suddenly collapsed 2385 | -10/Subcaves | Learned location of Zion (-7) 2385 | -10/Subcaves | Met a Zionite searching for "candidates" 2511 | -10/Subcaves | Shifting Twisted Machinery released Mak. System Restoration Module 2515 | -10/Subcaves | Shifting Twisted Machinery released Mak. Light Armor Plating 2648 | -10/Subcaves | Learned location of 1 exit from Materials 2911 | -10/Subcaves | Visited 4L-MR0's lab 2928 | -10/Subcaves | Found Rainbow Chip 3266 | -10/Subcaves | Discovered new exit (range 11) 3287 | -10/Subcaves | Entered Recycling 3325 | -8/Recycling | Core integrity fell below 20% 3558 | -8/Recycling | Scanned before Scraplab entrance 3705 | -8/Recycling | Build established: Commander-Mutant 3976 | -8/Recycling | Discovered new exit (range 13) 4455 | -8/Recycling | Entered Scraplab 4467 | -8/Recycling | Discovered new exit (range 2) 4483 | -8/Recycling | Entered Scraptown 4483 | -8/Scraptown | Accompanied by 5 allies 4483 | -8/Scraptown | System corruption cleaned by C-Scrubber 4726 | -8/Scraptown | Scanned Subdweller tech in exchange for log data 4729 | -8/Scraptown | Learned Factory terminal intel 4731 | -8/Scraptown | Learned 12 Factory zone layouts 4732 | -8/Scraptown | Learned location of Extension (-6) 4737 | -8/Scraptown | Learned Research non-interactive machine intel 5149 | -8/Scraptown | Visited Cave Peace 5170 | -8/Scraptown | Visited Shadow of the Wyrm 5190 | -8/Scraptown | Visited TADAMA 5202 | -8/Scraptown | Visited Cyclists 5241 | -8/Scraptown | Visited Artisan Demo Area 5314 | -8/Scraptown | Visited Symbiants 5335 | -8/Scraptown | Visited CPS Storage 5371 | -8/Scraptown | Visited UFD Registry 5371 | -8/Scraptown | Registered with UFD as "Smoothchassis" 5413 | -8/Scraptown | Visited Sword Containment 5532 | -8/Scraptown | Entered Cyclist Reading Room 5659 | -8/Scraptown | Visited Curators Association 5713 | -8/Scraptown | Visited Scrap Suit Storage 5817 | -8/Scraptown | Visited Supply Room 5841 | -8/Scraptown | Visited Derelict Rescue Squad 5860 | -8/Scraptown | Visited Scrapoid Pod Storage 5883 | -8/Scraptown | Visited Science Testing Area 5910 | -8/Scraptown | Visited Research Penetration Think Tank 5947 | -8/Scraptown | Visited Cartography Club 6142 | -8/Scraptown | Met Optimus 6142 | -8/Scraptown | Accepted into 0bPrime 6219 | -8/Scraptown | Civil war broke out across Scraptown 6231 | -8/Scraptown | Discovered new exit (range 3) 6275 | -8/Scraptown | Entered Factory 6275 | -6/Factory | Accompanied by 1 ally 6275 | -6/Factory | Evolved 8 slots: Power x1, Propulsion x3, Utility x4 6276 | -6/Factory | Identified exit to Factory 6277 | -6/Factory | Loaded intel: 28 terminal locations 6282 | -6/Factory | Lost 5 allies 6447 | -6/Factory | Lost 6 parts (1p4n1u) 6597 | -6/Factory | Loaded intel: 8 recycling unit locations 6937 | -6/Factory | Build established: Hacker-Mutant 6999 | -6/Factory | Repaired Arm. Wheel 7274 | -6/Factory | Discovered new exit (range 7) 7589 | -6/Factory | Repaired Mak. Light Armor Plating 7693 | -6/Factory | Lost 5 parts (3p1n1u) 7717 | -6/Factory | Learned location of Protoforge (-2) 7852 | -6/Factory | Lost 3 parts (1n2u) 8090 | -6/Factory | Lost 3 parts (2p1n) 8117 | -6/Factory | Core integrity fell below 50% 8165 | -6/Factory | Sucked down chute 8165 | -6/Factory | Entered Waste 8216 | -6/Waste | Spotted C-40 Crusher 8221 | -6/Waste | Spotted C-40 Crusher 8223 | -6/Waste | Destroyed C-40 Crusher 8225 | -6/Waste | Destroyed C-40 Crusher 8249 | -6/Waste | Found Damper Plating 8249 | -6/Waste | Spotted C-40 Crusher 8253 | -6/Waste | Spotted C-40 Crusher 8295 | -6/Waste | Spotted C-40 Crusher 8303 | -6/Waste | Spotted C-40 Crusher 8310 | -6/Waste | Crushed by Compactor (1 part destroyed, 2 dropped) 8321 | -6/Waste | Destroyed C-40 Crusher 8398 | -6/Waste | Destroyed C-40 Crusher 8436 | -6/Waste | Destroyed C-40 Crusher 8471 | -6/Waste | Found Damper Plating 8494 | -6/Waste | Destroyed C-40 Crusher 8525 | -6/Waste | Warlord forces began an assault 8648 | -6/Waste | Discovered new exit (range 13) 8678 | -6/Waste | Entered Factory 8678 | -6/Factory | Accompanied by 12 allies 8680 | -6/Factory | Build established: Scavenger-Mutant 8997 | -6/Factory | Discovered new exit (range 10) 9020 | -6/Factory | Spotted B-75 Beast 9039 | -6/Factory | Destroyed B-75 Beast 9067 | -6/Factory | Lost 5 allies 9249 | -6/Factory | Fabricated B-48 Gladiator? 9805 | -6/Factory | Loaded intel: 8 recycling unit locations 10313 | -6/Factory | Entered Lower Caves 10364 | -6/Lower Caves | Learned Factory garrison access intel 10783 | -6/Lower Caves | Discovered new exit (range 10) 10990 | -6/Lower Caves | Entered another Lower Caves area 11015 | -6/Lower Caves | Learned Factory emergency access door positions 11274 | -6/Lower Caves | Attracted the attention of an 0b10 checkpoint 11372 | -6/Lower Caves | Lost 3 parts (2p1n) 11374 | -6/Lower Caves | Learned location of 1 exit from Proximity Caves 11408 | -6/Lower Caves | Discovered new exit (range 12) 11410 | -6/Lower Caves | Encountered a Warlord checkpoint 11525 | -6/Lower Caves | Entered Data Miner 11526 | -6/Data Miner | Discovered new exit (range 6) 11542 | -6/Data Miner | Met Data Miner 11573 | -6/Data Miner | Learned location of Section 7 (-2) 11573 | -6/Data Miner | Acquired the access code to Warlord's prototype stash 11591 | -6/Data Miner | Received God Mode back door access code from Data Miner 11622 | -6/Data Miner | Build established: Mutant 11624 | -6/Data Miner | Entered Proximity Caves 11694 | -5/Proximity Caves | Escorted by Enhanced Grunt 11808 | -5/Proximity Caves | Attracted the attention of an 0b10 outpost 11824 | -5/Proximity Caves | Core integrity fell below 20% 11875 | -5/Proximity Caves | Destroyed 8 combat bots 11883 | -5/Proximity Caves | Lost 6 parts (1p4n1u) 12010 | -5/Proximity Caves | System corruption reached 10% 12040 | -5/Proximity Caves | Lost 4 parts (4u) 12176 | -5/Proximity Caves | Attracted the attention of an 0b10 checkpoint 12195 | -5/Proximity Caves | Entered Factory 12195 | -5/Factory | Evolved 2 slots: Propulsion x1, Utility x1 12196 | -5/Factory | Identified exit to Upper Caves 12198 | -5/Factory | Loaded intel: 4 garrison access locations 12470 | -5/Factory | Build established: Scavenger-Mutant 12943 | -5/Factory | Loaded intel: 8 recycling unit locations 12966 | -5/Factory | Incoming investigation squad redirected 13022 | -5/Factory | Lost 5 parts (1p2n2u) 13610 | -5/Factory | Cargo convoy interrupted 13617 | -5/Factory | Core integrity fell below 50% 13623 | -5/Factory | Core integrity fell below 20% 13629 | -5/Factory | Destroyed by X-77 Beamer with Gatling Laser Last Messages --------------- 13621_ Slug penetrates U-05 Engineer. 13621_ U-05 Engineer destroyed. 13621_ P-70 Sage resets H-66 Slayer, system corruption cleaned. 13621_ Dropped Adv. Signal Interpreter. 13621_ Enh. Flexi-carbon Leg destroyed. 13622_ U-05 Engineer lays Concrete. 13622_ Extracted 5 matter. 13622_ Penetrated by Slug. 13622_ Triangulator destroyed. 13623_ U-05 Engineer lays Concrete. 13623_ Slug penetrates U-05 Engineer. 13624_ U-05 Engineer lays Concrete. 13624_ Penetrated by Slug. 13625_ U-05 Engineer lays Concrete. 13625_ U-05 Engineer builds a Wall. 13625_ Slug penetrates Wall. 13625_ P-70 Sage resets U-05 Engineer, system corruption cleaned. 13625_ U-05 Engineer builds a Wall. 13626_ U-05 Engineer lays Concrete. 13627_ U-05 Engineer builds a Door. Map ----- +----------------------------------------------------+ | ?????????????????????????????????????????????????? | | ?????????????????????????????????????????????????? | | ?????????????????????????????????????????????????? | | ?????????????????????????????????????????????????? | | ??????????? ?????????????????????????????????? | | ??????????# ???????????????????????????????? | | ??????????# #??????????????????????????????? | | ??????????# #??????????????????????????????? | | ??????????# #??????????????????????????????? | | ??????????# #??????????????????????????????? | | ??????????# #??????????????????????????????? | | ??????????# #?????# ????"""????#???????????? | | ??? ? ?# #?????# #???????????? | | ??? ?# #?????# """"""" #???????????? | | ???"" " ?# #?????# """"""" #???????????? | | "?""""%" ?# ##?????] """"""" #???????????? | | " """ " ? #??????? """"""" ?????????????? | | " ""% ?# ##???????? ???????????###+# | | % ####+#################+############## | | " *%% | | % !%= | | " == | | " == =! | | %! ]]]! | | ] =% = !u%]] | | ## ]!]!*!x! ]][=! @ g | | ?####"##!]!!]= #######;###### ########## | | ! = [|= [ # |%= # #????????# | | ] !# [ # #????????# | | % "# ! ! """ # #????????# | | # !!! """ # #############+ | | # !! """ # / = | | # # #### | | [ [[ " # """ """ # #??# """ """ | | [[ "### """ """ # #??# """ """ | | [ ##?# """ """ # #??# """ """ | | #??# # #??# | | #??# # #??# """ """ | | #??# # #??#! """ """ | | #############??############## #??# """ """ | | ????????????????" #??# | | ????????????????" #??# ? ? | | ????????????????" #??# ? ?? | | ???????????????? #??####+###??# | | ????????????????"" """ """" """" =%#????????????? | | ????????????????????"" """" """" !=#????????????? | | ????????????????????"" """" """"!%!#????????????? | | ???????????????????? """" """" #????????????? | | ???????????????????? ???""" """" +????????????+ | | ??????????????????????????"" """" # ???????????? | +----------------------------------------------------+ Best States ------------- Heat Dissipation 40 Energy Generation 37 Energy Capacity 550 Matter Stores 400 Matter Capacity 400 Sight Range 22 Terrain Scan Range 20 Terrain Scan Density 10 Armor Coverage 600 Resistance: TH 20 Phase Shifting 5 Evasion (%) 55 Targeting Accuracy 8 Melee Accuracy 14 Core Analysis 6 Recoil Reduction 6 Force Boost 20 Offensive Hacking 22 Defensive Hacking 12 Item Schematics ----------------- Combat Drone Bay | -6/Data Miner | Free Lgt. Regenerative Plating | -6/Data Miner | Free Enh. Flexi-carbon Leg | -6/Data Miner | Free Imp. Matter Compressor | -6/Data Miner | Free Hvy. Proton Cannon | -6/Data Miner | Free Field Propulsion Array | -6/Data Miner | Free Imp. Point Defense System | -6/Data Miner | Free Hvy. Gauss Cannon | -6/Data Miner | Free Robot Schematics ------------------ M-22 Extractor | -6/Data Miner | Free H-66 Slayer | -6/Data Miner | Free L-41 Fighter | -6/Data Miner | Free S-27 Virus | -6/Data Miner | Free Fabricated ------------ B-48 Gladiator | x3 | -6/Factory | Preloaded Repaired ---------- Arm. Wheel | 6% | -6/Factory Mak. Light Armor Plating | 6% | -6/Factory Alien Tech Used ----------------- None Achievements -------------- None Challenges ------------ None Game ------ Seed AluminumXenonExtrapolator Manual? 0 Play Time 01:31:14 Cumulative 494.7 hours Start 2025.06.11 @ 18:19:47 End 2025.06.12 @ 19:13:46 Sessions 3 Manual Loads 0 Difficulty Rogue Special Mode None Game No. 341 Rogue 341 Adventurer 0 Explorer 0 Win Type - Total 46 Types 39/0/5/2/0/0/0/0/0/0 Lore% 82 Gallery% 79 Achievement% 72 Wizard Run 0 Options --------- Layout 0 ASCII 0 Keyboard 1 Movement Numpad Keybinds 0 Fullscreen 2 Font 24/Tamsyn Map View 76x50 Zoom Use 0% Tactical HUD 1 Map Filters NONE Filters NONE Steam 1 RUN: a491a98d-3ac3-4e1c-b839-9c33d6127753